[Event "Titled Tuesday Blitz April 19 Late 2022"]
[White "Lewicki, Miroslaw"]
[Black "Salem, A.R. Saleh"]
[WhiteFideId "1113380"]
[BlackFideId "9301348"]
[WhiteElo "2283"]
[BlackElo "2657"]
[Result "0-1"]
[Round "01"]
[TimeControl "180+1"]
[Date "2022.04.19"]
[WhiteClock "0:00:15"]
[BlackClock "0:01:05"]

1. g3 {[%clk 0:02:57]}  d5 {[%clk 0:02:59]} 2. Bg2 {[%clk 0:02:57]}  e5 {[%clk 0:02:59]} 3. d3 {[%clk 0:02:57]}  Nf6 {[%clk 0:02:59]} 4. Nf3 {[%clk 0:02:57]}  Bd6 {[%clk 0:02:58]} 5. O-O {[%clk 0:02:57]}  O-O {[%clk 0:02:59]} 6. b3 {[%clk 0:02:57]}  Re8 {[%clk 0:02:59]} 7. Bb2 {[%clk 0:02:57]}  Nbd7 {[%clk 0:02:58]} 8. Nbd2 {[%clk 0:02:57]}  Nf8 {[%clk 0:02:56]} 9. e4 {[%clk 0:02:57]}  c6 {[%clk 0:02:55]} 10. Re1 {[%clk 0:02:57]}  Ng6 {[%clk 0:02:55]} 11. h3 {[%clk 0:02:56]}  h6 {[%clk 0:02:55]} 12. Qe2 {[%clk 0:02:56]}  a5 {[%clk 0:02:54]} 13. a4 {[%clk 0:02:54]}  Bd7 {[%clk 0:02:49]} 14. Rad1 {[%clk 0:02:54]}  Qc7 {[%clk 0:02:47]} 15. Nh2 {[%clk 0:02:39]}  Qc8 {[%clk 0:02:41]} 16. h4 {[%clk 0:02:36]}  Nf8 {[%clk 0:02:35]} 17. f3 {[%clk 0:02:29]}  Nh5 {[%clk 0:02:34]} 18. Ndf1 {[%clk 0:02:25]}  Bc5+ {[%clk 0:02:27]} 19. Kh1 {[%clk 0:02:23]}  Ng6 {[%clk 0:02:28]} 20. f4 {[%clk 0:02:15]}  Nhxf4 {[%clk 0:01:58]} 21. gxf4 {[%clk 0:02:13]}  Nxf4 {[%clk 0:01:58]} 22. Qf3 {[%clk 0:02:09]}  Bb4 {[%clk 0:01:51]} 23. exd5 {[%clk 0:01:27]}  Bxe1 {[%clk 0:01:47]} 24. Rxe1 {[%clk 0:01:28]}  cxd5 {[%clk 0:01:45]} 25. Bxe5 {[%clk 0:01:28]}  Ng6 {[%clk 0:01:43]} 26. Bg3 {[%clk 0:01:01]}  Qxc2 {[%clk 0:01:43]} 27. h5 {[%clk 0:00:45]}  Rxe1 {[%clk 0:01:41]} 28. hxg6 {[%clk 0:00:45]}  Re7 {[%clk 0:01:30]} 29. Bd6 {[%clk 0:00:46]}  Rae8 {[%clk 0:01:26]} 30. Bxe7 {[%clk 0:00:44]}  Rxe7 {[%clk 0:01:27]} 31. Ne3 {[%clk 0:00:26]}  Qxd3 {[%clk 0:01:09]} 32. Nxd5 {[%clk 0:00:24]}  Re1+ {[%clk 0:01:08]} 33. Nf1 {[%clk 0:00:17]}  Qxf3 {[%clk 0:01:05]} 34. Bxf3 {[%clk 0:00:15]}  Rxf1+ {[%clk 0:01:05]} 0-1


[Site "https://www.chess.com"]

[Event "Titled Tuesday Blitz April 19 Late 2022"]
[White "Lima, Kleyton Alcantara"]
[Black "Hasangatin, Ramil"]
[WhiteFideId "22718397"]
[BlackFideId "4122160"]
[WhiteElo "1951"]
[BlackElo "2375"]
[Result "0-1"]
[Round "01"]
[TimeControl "180+1"]
[Date "2022.04.19"]
[WhiteClock "0:00:01"]
[BlackClock "0:01:40"]

1. e4 {[%clk 0:03:00]}  c5 {[%clk 0:02:58]} 2. Nf3 {[%clk 0:03:00]}  e6 {[%clk 0:02:59]} 3. d4 {[%clk 0:03:01]}  cxd4 {[%clk 0:03:00]} 4. Nxd4 {[%clk 0:03:02]}  Nf6 {[%clk 0:03:00]} 5. Nc3 {[%clk 0:03:02]}  Nc6 {[%clk 0:03:00]} 6. Ndb5 {[%clk 0:03:00]}  Bc5 {[%clk 0:03:00]} 7. Nd6+ {[%clk 0:02:53]}  Ke7 {[%clk 0:02:59]} 8. Bf4 {[%clk 0:02:47]}  Qb6 {[%clk 0:02:47]} 9. Nxc8+ {[%clk 0:01:23]}  Raxc8 {[%clk 0:02:44]} 10. Qd2 {[%clk 0:01:05]}  Bb4 {[%clk 0:02:42]} 11. O-O-O {[%clk 0:01:05]}  Rhd8 {[%clk 0:02:31]} 12. Bd6+ {[%clk 0:01:04]}  Ke8 {[%clk 0:02:31]} 13. a3 {[%clk 0:00:42]}  Nxe4 {[%clk 0:02:21]} 14. Qf4 {[%clk 0:00:25]}  Bxc3 {[%clk 0:02:11]} 15. bxc3 {[%clk 0:00:20]}  Nxc3 {[%clk 0:02:02]} 16. Bb4 {[%clk 0:00:06]}  Nxb4 {[%clk 0:01:57]} 17. axb4 {[%clk 0:00:04]}  Qxb4 {[%clk 0:01:55]} 18. Qxb4 {[%clk 0:00:03]}  Na2+ {[%clk 0:01:56]} 19. Kb2 {[%clk 0:00:04]}  Nxb4 {[%clk 0:01:56]} 20. Bd3 {[%clk 0:00:02]}  f5 {[%clk 0:01:53]} 21. Rhe1 {[%clk 0:00:02]}  Kf7 {[%clk 0:01:51]} 22. f4 {[%clk 0:00:02]}  Kf6 {[%clk 0:01:51]} 23. h3 {[%clk 0:00:02]}  h5 {[%clk 0:01:51]} 24. g4 {[%clk 0:00:02]}  Nxd3+ {[%clk 0:01:50]} 25. Rxd3 {[%clk 0:00:02]}  hxg4 {[%clk 0:01:50]} 26. hxg4 {[%clk 0:00:03]}  Rc4 {[%clk 0:01:49]} 27. g5+ {[%clk 0:00:02]}  Ke7 {[%clk 0:01:47]} 28. Rf3 {[%clk 0:00:02]}  Rh8 {[%clk 0:01:45]} 29. Rf2 {[%clk 0:00:02]}  Rh4 {[%clk 0:01:44]} 30. Ref1 {[%clk 0:00:02]}  b5 {[%clk 0:01:43]} 31. Kb3 {[%clk 0:00:02]}  a5 {[%clk 0:01:43]} 32. Kb2 {[%clk 0:00:02]}  a4 {[%clk 0:01:44]} 33. c3 {[%clk 0:00:02]}  Rh3 {[%clk 0:01:42]} 34. Rc2 {[%clk 0:00:01]}  b4 {[%clk 0:01:41]} 35. cxb4 {[%clk 0:00:01]}  Rb3+ {[%clk 0:01:40]} 0-1


[Site "https://www.chess.com"]

[Event "Titled Tuesday Blitz April 19 Late 2022"]
[White "Lock, Gavin R"]
[Black "Hnydiuk, Aleksander"]
[WhiteFideId "408646"]
[BlackFideId "1109057"]
[WhiteElo "2104"]
[BlackElo "2374"]
[Result "0-1"]
[Round "01"]
[TimeControl "180+1"]
[Date "2022.04.19"]
[WhiteClock "0:00:13"]
[BlackClock "0:00:57"]

1. d4 {[%clk 0:02:57]}  Nf6 {[%clk 0:02:59]} 2. Nf3 {[%clk 0:02:58]}  g6 {[%clk 0:02:59]} 3. Nc3 {[%clk 0:02:57]}  Bg7 {[%clk 0:02:50]} 4. e4 {[%clk 0:02:56]}  d5 {[%clk 0:02:50]} 5. e5 {[%clk 0:02:56]}  Ne4 {[%clk 0:02:51]} 6. Bd3 {[%clk 0:02:56]}  Bf5 {[%clk 0:02:42]} 7. Nh4 {[%clk 0:02:37]}  Nxc3 {[%clk 0:02:38]} 8. bxc3 {[%clk 0:02:38]}  Bxd3 {[%clk 0:02:36]} 9. cxd3 {[%clk 0:02:12]}  e6 {[%clk 0:02:37]} 10. Nf3 {[%clk 0:02:11]}  O-O {[%clk 0:02:37]} 11. O-O {[%clk 0:02:11]}  c5 {[%clk 0:02:36]} 12. dxc5 {[%clk 0:02:00]}  Qa5 {[%clk 0:02:35]} 13. Qb3 {[%clk 0:01:49]}  Nd7 {[%clk 0:02:14]} 14. d4 {[%clk 0:01:49]}  b6 {[%clk 0:02:10]} 15. Qb4 {[%clk 0:01:22]}  Qa6 {[%clk 0:02:00]} 16. c6 {[%clk 0:01:02]}  Nb8 {[%clk 0:01:59]} 17. a4 {[%clk 0:00:57]}  Nxc6 {[%clk 0:01:57]} 18. Qb5 {[%clk 0:00:58]}  Qb7 {[%clk 0:01:54]} 19. Bd2 {[%clk 0:00:49]}  Na5 {[%clk 0:01:52]} 20. Rfb1 {[%clk 0:00:48]}  Nc4 {[%clk 0:01:50]} 21. Be1 {[%clk 0:00:47]}  Rfc8 {[%clk 0:01:48]} 22. a5 {[%clk 0:00:43]}  a6 {[%clk 0:01:47]} 23. Qb3 {[%clk 0:00:39]}  b5 {[%clk 0:01:48]} 24. h4 {[%clk 0:00:39]}  Qc7 {[%clk 0:01:47]} 25. Qa2 {[%clk 0:00:37]}  h6 {[%clk 0:01:40]} 26. Rc1 {[%clk 0:00:28]}  Bf8 {[%clk 0:01:35]} 27. Nd2 {[%clk 0:00:26]}  Nxd2 {[%clk 0:01:31]} 28. Bxd2 {[%clk 0:00:27]}  Qc4 {[%clk 0:01:31]} 29. Qb1 {[%clk 0:00:23]}  Qe2 {[%clk 0:01:26]} 30. Ra2 {[%clk 0:00:20]}  Qg4 {[%clk 0:01:24]} 31. g3 {[%clk 0:00:19]}  Qf3 {[%clk 0:01:04]} 32. Be3 {[%clk 0:00:15]}  Kg7 {[%clk 0:01:00]} 33. Qb3 {[%clk 0:00:13]}  Be7 {[%clk 0:00:58]} 34. Rac2 {[%clk 0:00:12]}  g5 {[%clk 0:00:57]} 35. hxg5 {[%clk 0:00:13]}  hxg5 {[%clk 0:00:57]} 36. Rd2 {[%clk 0:00:13]}  Rh8 {[%clk 0:00:57]} 0-1


[Site "https://www.chess.com"]

[Event "Titled Tuesday Blitz April 19 Late 2022"]
[White "Maranhao,Jose Renato Ruiz"]
[Black "Romanchuk, Viktor"]
[WhiteFideId "2135175"]
[BlackFideId "14109271"]
[WhiteElo "1970"]
[BlackElo "2242"]
[Result "0-1"]
[Round "01"]
[TimeControl "180+1"]
[Date "2022.04.19"]
[WhiteClock "0:00:03"]
[BlackClock "0:00:43"]

1. e4 {[%clk 0:02:59]}  e6 {[%clk 0:03:00]} 2. d4 {[%clk 0:02:55]}  d5 {[%clk 0:02:59]} 3. Nc3 {[%clk 0:02:55]}  dxe4 {[%clk 0:02:57]} 4. Nxe4 {[%clk 0:02:56]}  Nd7 {[%clk 0:02:57]} 5. Nf3 {[%clk 0:02:56]}  Ngf6 {[%clk 0:02:57]} 6. Nxf6+ {[%clk 0:02:55]}  Nxf6 {[%clk 0:02:58]} 7. Bd3 {[%clk 0:02:55]}  c5 {[%clk 0:02:58]} 8. O-O {[%clk 0:02:52]}  cxd4 {[%clk 0:02:58]} 9. Nxd4 {[%clk 0:02:50]}  Bc5 {[%clk 0:02:58]} 10. Nb3 {[%clk 0:02:41]}  Bd6 {[%clk 0:02:58]} 11. Bg5 {[%clk 0:02:29]}  Qc7 {[%clk 0:02:56]} 12. Bxf6 {[%clk 0:02:23]}  gxf6 {[%clk 0:02:54]} 13. g3 {[%clk 0:02:22]}  Bd7 {[%clk 0:02:52]} 14. Qh5 {[%clk 0:02:17]}  Be5 {[%clk 0:02:35]} 15. c3 {[%clk 0:01:58]}  O-O-O {[%clk 0:02:33]} 16. Qxf7 {[%clk 0:01:51]}  h5 {[%clk 0:02:33]} 17. Be4 {[%clk 0:01:17]}  h4 {[%clk 0:02:25]} 18. f4 {[%clk 0:01:16]}  Rdf8 {[%clk 0:01:46]} 19. Qg7 {[%clk 0:00:18]}  Rfg8 {[%clk 0:01:18]} 20. Qf7 {[%clk 0:00:10]}  Bxf4 {[%clk 0:01:06]} 21. Bxb7+ {[%clk 0:00:04]}  Qxb7 {[%clk 0:01:00]} 22. Rxf4 {[%clk 0:00:03]}  hxg3 {[%clk 0:00:50]} 23. Nc5 {[%clk 0:00:03]}  gxh2+ {[%clk 0:00:48]} 24. Kf1 {[%clk 0:00:03]}  h1=Q+ {[%clk 0:00:46]} 25. Ke2 {[%clk 0:00:03]}  Bb5+ {[%clk 0:00:43]} 26. Kd2 {[%clk 0:00:03]} 0-1


[Site "https://www.chess.com"]

[Event "Titled Tuesday Blitz April 19 Late 2022"]
[White "Martinez Alcantara, Jose Eduardo"]
[Black "Gnechko, Ruslan"]
[WhiteFideId "3805662"]
[BlackFideId "14135868"]
[WhiteElo "2690"]
[BlackElo "2289"]
[Result "1-0"]
[Round "01"]
[TimeControl "180+1"]
[Date "2022.04.19"]
[WhiteClock "0:01:04"]
[BlackClock "0:01:02"]

1. e4 {[%clk 0:03:00]}  c6 {[%clk 0:02:59]} 2. d4 {[%clk 0:03:00]}  d5 {[%clk 0:03:00]} 3. e5 {[%clk 0:03:00]}  Bf5 {[%clk 0:03:00]} 4. h4 {[%clk 0:03:01]}  h5 {[%clk 0:03:00]} 5. Bd3 {[%clk 0:03:02]}  Bxd3 {[%clk 0:02:59]} 6. Qxd3 {[%clk 0:03:03]}  e6 {[%clk 0:02:59]} 7. Nf3 {[%clk 0:03:03]}  c5 {[%clk 0:02:55]} 8. Nc3 {[%clk 0:03:03]}  cxd4 {[%clk 0:02:55]} 9. Nxd4 {[%clk 0:02:48]}  a6 {[%clk 0:02:53]} 10. Bg5 {[%clk 0:02:46]}  Be7 {[%clk 0:02:53]} 11. f4 {[%clk 0:02:45]}  Nc6 {[%clk 0:02:52]} 12. O-O-O {[%clk 0:02:36]}  Nh6 {[%clk 0:02:52]} 13. Nxe6 {[%clk 0:02:28]}  fxe6 {[%clk 0:02:45]} 14. Qg6+ {[%clk 0:02:28]}  Nf7 {[%clk 0:02:36]} 15. Qxe6 {[%clk 0:02:27]}  d4 {[%clk 0:02:34]} 16. Nd5 {[%clk 0:02:19]}  Nxg5 {[%clk 0:02:12]} 17. hxg5 {[%clk 0:02:15]}  Rc8 {[%clk 0:02:07]} 18. g4 {[%clk 0:01:32]}  h4 {[%clk 0:01:59]} 19. Qg6+ {[%clk 0:01:25]}  Kf8 {[%clk 0:01:59]} 20. e6 {[%clk 0:01:20]}  Qe8 {[%clk 0:01:52]} 21. Qf5+ {[%clk 0:01:21]}  Kg8 {[%clk 0:01:52]} 22. Kb1 {[%clk 0:01:21]}  h3 {[%clk 0:01:38]} 23. a3 {[%clk 0:01:21]}  h2 {[%clk 0:01:38]} 24. Rd2 {[%clk 0:01:19]}  Qf8 {[%clk 0:01:36]} 25. Qe4 {[%clk 0:01:13]}  Bxa3 {[%clk 0:01:21]} 26. Rdxh2 {[%clk 0:01:10]}  Rxh2 {[%clk 0:01:20]} 27. Rxh2 {[%clk 0:01:11]}  g6 {[%clk 0:01:02]} 28. Nf6+ {[%clk 0:01:04]} 1-0


[Site "https://www.chess.com"]

[Event "Titled Tuesday Blitz April 19 Late 2022"]
[White "Melaugh, Shane"]
[Black "Tristan, Leonardo"]
[WhiteFideId "2509580"]
[BlackFideId "113816"]
[WhiteElo "1972"]
[BlackElo "2404"]
[Result "0-1"]
[Round "01"]
[TimeControl "180+1"]
[Date "2022.04.19"]
[WhiteClock "0:02:28"]
[BlackClock "0:02:33"]

1. c4 {[%clk 0:03:00]}  e6 {[%clk 0:02:36]} 2. Nc3 {[%clk 0:02:59]}  d5 {[%clk 0:02:36]} 3. cxd5 {[%clk 0:03:00]}  exd5 {[%clk 0:02:36]} 4. d4 {[%clk 0:03:01]}  a6 {[%clk 0:02:36]} 5. Nf3 {[%clk 0:03:02]}  Nf6 {[%clk 0:02:37]} 6. Bf4 {[%clk 0:02:59]}  c5 {[%clk 0:02:36]} 7. e3 {[%clk 0:02:59]}  c4 {[%clk 0:02:36]} 8. a4 {[%clk 0:02:57]}  Nc6 {[%clk 0:02:36]} 9. b3 {[%clk 0:02:56]}  Bb4 {[%clk 0:02:35]} 10. Rc1 {[%clk 0:02:33]}  Qa5 {[%clk 0:02:35]} 11. Qd2 {[%clk 0:02:31]}  Ne4 {[%clk 0:02:34]} 12. Nxe4 {[%clk 0:02:31]}  dxe4 {[%clk 0:02:33]} 13. Bxc4 {[%clk 0:02:28]}  exf3 {[%clk 0:02:33]} 0-1


[Site "https://www.chess.com"]

[Event "Titled Tuesday Blitz April 19 Late 2022"]
[White "Mortazavi, Ali"]
[Black "Jacobson, Brandon"]
[WhiteFideId "401323"]
[BlackFideId "30901561"]
[WhiteElo "2339"]
[BlackElo "2362"]
[Result "0-1"]
[Round "01"]
[TimeControl "180+1"]
[Date "2022.04.19"]
[WhiteClock "0:00:17"]
[BlackClock "0:01:27"]

1. Nf3 {[%clk 0:03:00]}  g6 {[%clk 0:02:56]} 2. e4 {[%clk 0:03:00]}  Bg7 {[%clk 0:02:57]} 3. d4 {[%clk 0:03:00]}  d6 {[%clk 0:02:57]} 4. Nc3 {[%clk 0:03:00]}  Nf6 {[%clk 0:02:57]} 5. Be3 {[%clk 0:03:00]}  O-O {[%clk 0:02:58]} 6. Qd2 {[%clk 0:02:58]}  Bg4 {[%clk 0:02:46]} 7. Ng5 {[%clk 0:02:57]}  Nc6 {[%clk 0:02:35]} 8. h3 {[%clk 0:02:49]}  Bd7 {[%clk 0:02:34]} 9. O-O-O {[%clk 0:02:38]}  e5 {[%clk 0:02:31]} 10. dxe5 {[%clk 0:02:33]}  Nxe5 {[%clk 0:02:32]} 11. f4 {[%clk 0:02:32]}  Nc6 {[%clk 0:02:30]} 12. Bc4 {[%clk 0:02:12]}  b5 {[%clk 0:02:17]} 13. Bxb5 {[%clk 0:01:58]}  Rb8 {[%clk 0:02:10]} 14. Bd3 {[%clk 0:01:56]}  Re8 {[%clk 0:02:06]} 15. Nf3 {[%clk 0:01:46]}  Nxe4 {[%clk 0:01:50]} 16. Bxe4 {[%clk 0:01:44]}  Rxe4 {[%clk 0:01:50]} 17. Rhe1 {[%clk 0:01:25]}  Rxb2 {[%clk 0:01:34]} 18. Kxb2 {[%clk 0:01:21]}  Qb8+ {[%clk 0:01:34]} 19. Kc1 {[%clk 0:00:59]}  Qb4 {[%clk 0:01:35]} 20. Bc5 {[%clk 0:00:18]}  Qxc5 {[%clk 0:01:27]} 21. Rxe4 {[%clk 0:00:17]}  Bxc3 {[%clk 0:01:27]} 22. Kb1 {[%clk 0:00:17]}  Qb6+ {[%clk 0:01:27]} 0-1


[Site "https://www.chess.com"]

[Event "Titled Tuesday Blitz April 19 Late 2022"]
[White "Naroditsky, Daniel"]
[Black "Sztokbant, Bernardo Vainzoff"]
[WhiteFideId "2026961"]
[BlackFideId "2115956"]
[WhiteElo "2608"]
[BlackElo "2225"]
[Result "1/2-1/2"]
[Round "01"]
[TimeControl "180+1"]
[Date "2022.04.19"]
[WhiteClock "0:01:10"]
[BlackClock "0:01:18"]

1. c4 {[%clk 0:02:58]}  e6 {[%clk 0:02:58]} 2. d4 {[%clk 0:02:55]}  d5 {[%clk 0:02:59]} 3. Nc3 {[%clk 0:02:55]}  Be7 {[%clk 0:02:59]} 4. cxd5 {[%clk 0:02:53]}  exd5 {[%clk 0:03:00]} 5. Bf4 {[%clk 0:02:53]}  c6 {[%clk 0:03:00]} 6. e3 {[%clk 0:02:52]}  Bf5 {[%clk 0:03:00]} 7. g4 {[%clk 0:02:51]}  Be6 {[%clk 0:03:00]} 8. h4 {[%clk 0:02:47]}  Nd7 {[%clk 0:02:57]} 9. g5 {[%clk 0:02:45]}  Nb6 {[%clk 0:02:57]} 10. Bd3 {[%clk 0:02:43]}  Bd6 {[%clk 0:02:57]} 11. Bxd6 {[%clk 0:02:35]}  Qxd6 {[%clk 0:02:56]} 12. Nf3 {[%clk 0:02:36]}  Ne7 {[%clk 0:02:55]} 13. Ne5 {[%clk 0:02:36]}  O-O-O {[%clk 0:02:50]} 14. a4 {[%clk 0:02:27]}  f6 {[%clk 0:02:49]} 15. gxf6 {[%clk 0:02:13]}  gxf6 {[%clk 0:02:50]} 16. Nf3 {[%clk 0:02:12]}  a5 {[%clk 0:02:37]} 17. Qb3 {[%clk 0:02:06]}  Nc4 {[%clk 0:02:28]} 18. Bxc4 {[%clk 0:01:57]}  dxc4 {[%clk 0:02:29]} 19. Qb6 {[%clk 0:01:51]}  Qb4 {[%clk 0:01:50]} 20. Qxb4 {[%clk 0:01:46]}  axb4 {[%clk 0:01:51]} 21. Na2 {[%clk 0:01:47]}  Nd5 {[%clk 0:01:51]} 22. Nd2 {[%clk 0:01:38]}  b5 {[%clk 0:01:40]} 23. e4 {[%clk 0:01:28]}  Rhe8 {[%clk 0:01:33]} 24. O-O-O {[%clk 0:01:17]}  Nf4 {[%clk 0:01:31]} 25. Nxb4 {[%clk 0:01:16]}  Ne2+ {[%clk 0:01:29]} 26. Kb1 {[%clk 0:01:16]}  Nxd4 {[%clk 0:01:30]} 27. axb5 {[%clk 0:01:15]}  cxb5 {[%clk 0:01:31]} 28. f3 {[%clk 0:01:10]}  Rg8 {[%clk 0:01:18]} 1/2-1/2


[Site "https://www.chess.com"]

[Event "Titled Tuesday Blitz April 19 Late 2022"]
[White "Nasuta, Grzegorz"]
[Black "Ladan, Nicholas"]
[WhiteFideId "1141686"]
[BlackFideId "30918855"]
[WhiteElo "2396"]
[BlackElo "2167"]
[Result "1-0"]
[Round "01"]
[TimeControl "180+1"]
[Date "2022.04.19"]
[WhiteClock "0:01:06"]
[BlackClock "0:01:14"]

1. d4 {[%clk 0:03:00]}  d5 {[%clk 0:02:59]} 2. c4 {[%clk 0:03:00]}  c6 {[%clk 0:02:59]} 3. cxd5 {[%clk 0:02:58]}  cxd5 {[%clk 0:03:00]} 4. Bf4 {[%clk 0:02:58]}  Nf6 {[%clk 0:03:00]} 5. e3 {[%clk 0:02:57]}  Nc6 {[%clk 0:03:01]} 6. Nc3 {[%clk 0:02:56]}  Ne4 {[%clk 0:02:54]} 7. Bd3 {[%clk 0:02:30]}  Nxc3 {[%clk 0:02:52]} 8. bxc3 {[%clk 0:02:31]}  e6 {[%clk 0:02:51]} 9. Nf3 {[%clk 0:02:29]}  Bd6 {[%clk 0:02:52]} 10. Bxd6 {[%clk 0:02:28]}  Qxd6 {[%clk 0:02:52]} 11. O-O {[%clk 0:02:28]}  O-O {[%clk 0:02:51]} 12. Re1 {[%clk 0:02:22]}  e5 {[%clk 0:02:43]} 13. Bb5 {[%clk 0:01:42]}  e4 {[%clk 0:02:41]} 14. Nd2 {[%clk 0:01:42]}  Qg6 {[%clk 0:02:29]} 15. Bf1 {[%clk 0:01:34]}  f5 {[%clk 0:02:19]} 16. c4 {[%clk 0:01:33]}  dxc4 {[%clk 0:02:18]} 17. Nxc4 {[%clk 0:01:32]}  f4 {[%clk 0:02:11]} 18. d5 {[%clk 0:01:30]}  Bg4 {[%clk 0:01:53]} 19. Qb3 {[%clk 0:01:25]}  Nd8 {[%clk 0:01:41]} 20. exf4 {[%clk 0:01:16]}  Rxf4 {[%clk 0:01:28]} 21. Ne5 {[%clk 0:01:15]}  Qf5 {[%clk 0:01:24]} 22. Nxg4 {[%clk 0:01:15]}  Rxg4 {[%clk 0:01:23]} 23. Rad1 {[%clk 0:01:14]}  a5 {[%clk 0:01:14]} 24. d6+ {[%clk 0:01:07]}  Qf7 {[%clk 0:01:14]} 25. Bc4 {[%clk 0:01:06]} 1-0


[Site "https://www.chess.com"]

[Event "Titled Tuesday Blitz April 19 Late 2022"]
[White "Nozdrachev, Leonid"]
[Black "Svane, Rasmus"]
[WhiteFideId "24113433"]
[BlackFideId "4657101"]
[WhiteElo "2242"]
[BlackElo "2645"]
[Result "1/2-1/2"]
[Round "01"]
[TimeControl "180+1"]
[Date "2022.04.19"]
[WhiteClock "0:00:04"]
[BlackClock "0:00:18"]

1. e4 {[%clk 0:02:55]}  c6 {[%clk 0:02:59]} 2. c4 {[%clk 0:02:53]}  d5 {[%clk 0:03:00]} 3. exd5 {[%clk 0:02:52]}  cxd5 {[%clk 0:03:01]} 4. cxd5 {[%clk 0:02:53]}  Nf6 {[%clk 0:02:56]} 5. Nc3 {[%clk 0:02:51]}  Nxd5 {[%clk 0:02:54]} 6. Bb5+ {[%clk 0:02:40]}  Bd7 {[%clk 0:02:43]} 7. Qb3 {[%clk 0:02:39]}  Nb6 {[%clk 0:02:20]} 8. Nf3 {[%clk 0:02:33]}  e6 {[%clk 0:02:19]} 9. d4 {[%clk 0:02:28]}  Be7 {[%clk 0:02:17]} 10. O-O {[%clk 0:02:27]}  O-O {[%clk 0:02:15]} 11. Bd3 {[%clk 0:02:26]}  Bc6 {[%clk 0:02:13]} 12. Ne4 {[%clk 0:02:19]}  N8d7 {[%clk 0:02:09]} 13. Be3 {[%clk 0:02:12]}  Nf6 {[%clk 0:02:08]} 14. Nxf6+ {[%clk 0:02:08]}  Bxf6 {[%clk 0:02:08]} 15. Ne5 {[%clk 0:02:06]}  Bd5 {[%clk 0:02:07]} 16. Qc2 {[%clk 0:02:04]}  g6 {[%clk 0:02:05]} 17. Qe2 {[%clk 0:02:01]}  Rc8 {[%clk 0:02:02]} 18. b3 {[%clk 0:01:58]}  Qd6 {[%clk 0:01:59]} 19. Bf4 {[%clk 0:01:55]}  Qb4 {[%clk 0:01:59]} 20. Qe3 {[%clk 0:01:49]}  Rfd8 {[%clk 0:01:54]} 21. Rad1 {[%clk 0:01:41]}  a5 {[%clk 0:01:46]} 22. Qh3 {[%clk 0:01:33]}  Qe7 {[%clk 0:01:22]} 23. Ng4 {[%clk 0:01:27]}  Bg7 {[%clk 0:01:22]} 24. Rfe1 {[%clk 0:01:06]}  Bc6 {[%clk 0:01:11]} 25. Be5 {[%clk 0:01:03]}  Nd7 {[%clk 0:00:52]} 26. Bxg7 {[%clk 0:01:02]}  Kxg7 {[%clk 0:00:53]} 27. Qh6+ {[%clk 0:01:00]}  Kg8 {[%clk 0:00:53]} 28. Qf4 {[%clk 0:00:24]}  Kg7 {[%clk 0:00:46]} 29. Qh6+ {[%clk 0:00:23]}  Kg8 {[%clk 0:00:46]} 30. Qf4 {[%clk 0:00:23]}  h5 {[%clk 0:00:44]} 31. Ne5 {[%clk 0:00:18]}  Nxe5 {[%clk 0:00:44]} 32. dxe5 {[%clk 0:00:19]}  Kg7 {[%clk 0:00:40]} 33. h3 {[%clk 0:00:17]}  Rd7 {[%clk 0:00:40]} 34. Be4 {[%clk 0:00:14]}  Bxe4 {[%clk 0:00:37]} 35. Qxe4 {[%clk 0:00:15]}  Rcd8 {[%clk 0:00:37]} 36. Qf3 {[%clk 0:00:12]}  Qg5 {[%clk 0:00:34]} 37. Rxd7 {[%clk 0:00:09]}  Rxd7 {[%clk 0:00:35]} 38. g3 {[%clk 0:00:05]}  Rd5 {[%clk 0:00:36]} 39. h4 {[%clk 0:00:05]}  Qd8 {[%clk 0:00:30]} 40. Re2 {[%clk 0:00:04]}  b5 {[%clk 0:00:30]} 41. Kg2 {[%clk 0:00:04]}  a4 {[%clk 0:00:29]} 42. bxa4 {[%clk 0:00:04]}  bxa4 {[%clk 0:00:30]} 43. a3 {[%clk 0:00:04]}  Rd3 {[%clk 0:00:31]} 44. Qf4 {[%clk 0:00:04]}  Rxa3 {[%clk 0:00:30]} 45. Rd2 {[%clk 0:00:04]}  Rd3 {[%clk 0:00:29]} 46. Rxd3 {[%clk 0:00:04]}  Qxd3 {[%clk 0:00:29]} 47. Qxa4 {[%clk 0:00:04]}  Qd5+ {[%clk 0:00:30]} 48. Kg1 {[%clk 0:00:03]}  Qxe5 {[%clk 0:00:31]} 49. Qb4 {[%clk 0:00:03]}  Qa1+ {[%clk 0:00:30]} 50. Kg2 {[%clk 0:00:03]}  Qa8+ {[%clk 0:00:31]} 51. Kg1 {[%clk 0:00:03]}  Qf3 {[%clk 0:00:31]} 52. Qe1 {[%clk 0:00:03]}  Qd5 {[%clk 0:00:29]} 53. Qe3 {[%clk 0:00:03]}  e5 {[%clk 0:00:28]} 54. Qe1 {[%clk 0:00:02]}  Qd4 {[%clk 0:00:28]} 55. Qe2 {[%clk 0:00:02]}  Kf6 {[%clk 0:00:28]} 56. Qe1 {[%clk 0:00:02]}  Kf5 {[%clk 0:00:28]} 57. Qe2 {[%clk 0:00:03]}  Qd5 {[%clk 0:00:28]} 58. Qe1 {[%clk 0:00:03]}  Qe4 {[%clk 0:00:27]} 59. Qf1 {[%clk 0:00:03]}  Qf3 {[%clk 0:00:26]} 60. Qh3+ {[%clk 0:00:03]}  Ke4 {[%clk 0:00:26]} 61. Qf1 {[%clk 0:00:04]}  Kf5 {[%clk 0:00:23]} 62. Qh3+ {[%clk 0:00:04]}  Kf6 {[%clk 0:00:22]} 63. Qf1 {[%clk 0:00:05]}  Qe4 {[%clk 0:00:21]} 64. Qd1 {[%clk 0:00:05]}  Kf5 {[%clk 0:00:21]} 65. Qf1 {[%clk 0:00:05]}  Kg4 {[%clk 0:00:20]} 66. Kh2 {[%clk 0:00:04]}  Kf5 {[%clk 0:00:18]} 67. Kg1 {[%clk 0:00:04]} 1/2-1/2


[Site "https://www.chess.com"]

[Event "Titled Tuesday Blitz April 19 Late 2022"]
[White "Oparin, Grigoriy"]
[Black "Zivkovic, Nemanja"]
[WhiteFideId "24125890"]
[BlackFideId "942154"]
[WhiteElo "2665"]
[BlackElo "2364"]
[Result "1-0"]
[Round "01"]
[TimeControl "180+1"]
[Date "2022.04.19"]
[WhiteClock "0:01:55"]
[BlackClock "0:00:53"]

1. e4 {[%clk 0:03:00]}  c5 {[%clk 0:02:58]} 2. Nf3 {[%clk 0:02:59]}  d6 {[%clk 0:02:58]} 3. d4 {[%clk 0:02:58]}  cxd4 {[%clk 0:02:59]} 4. Qxd4 {[%clk 0:02:59]}  a6 {[%clk 0:02:55]} 5. h3 {[%clk 0:02:54]}  Nf6 {[%clk 0:02:55]} 6. Nc3 {[%clk 0:02:52]}  e6 {[%clk 0:02:52]} 7. Bc4 {[%clk 0:02:48]}  Nbd7 {[%clk 0:02:52]} 8. O-O {[%clk 0:02:47]}  Qc7 {[%clk 0:02:51]} 9. Bb3 {[%clk 0:02:47]}  Be7 {[%clk 0:02:48]} 10. Bg5 {[%clk 0:02:45]}  b5 {[%clk 0:02:45]} 11. Rad1 {[%clk 0:02:44]}  Bb7 {[%clk 0:02:43]} 12. Rfe1 {[%clk 0:02:44]}  O-O {[%clk 0:02:38]} 13. a3 {[%clk 0:02:43]}  Rfd8 {[%clk 0:02:37]} 14. Qe3 {[%clk 0:02:36]}  Nc5 {[%clk 0:02:30]} 15. Nd2 {[%clk 0:02:09]}  Rac8 {[%clk 0:02:18]} 16. Ba2 {[%clk 0:02:09]}  Ne8 {[%clk 0:01:56]} 17. Bxe7 {[%clk 0:02:04]}  Qxe7 {[%clk 0:01:57]} 18. Nb3 {[%clk 0:02:00]}  Nf6 {[%clk 0:01:45]} 19. f3 {[%clk 0:02:00]}  Qc7 {[%clk 0:01:36]} 20. Rd2 {[%clk 0:01:57]}  Nxb3 {[%clk 0:01:32]} 21. Bxb3 {[%clk 0:01:57]}  Nd7 {[%clk 0:01:20]} 22. Red1 {[%clk 0:01:57]}  Nc5 {[%clk 0:01:01]} 23. Ba2 {[%clk 0:01:57]}  h6 {[%clk 0:01:01]} 24. Ne2 {[%clk 0:01:56]}  Na4 {[%clk 0:00:59]} 25. c3 {[%clk 0:01:56]}  Nb6 {[%clk 0:00:57]} 26. Nf4 {[%clk 0:01:56]}  Qe7 {[%clk 0:00:53]} 27. Qxb6 {[%clk 0:01:55]} 1-0


[Site "https://www.chess.com"]